[Event "Titled Tuesday Blitz May 30 Late 2023"]
[White "Adewumi, Tanitoluwa"]
[Black "Jakic, Ivan"]
[WhiteFideId "30966396"]
[BlackFideId "14504901"]
[WhiteElo "2590"]
[BlackElo "2370"]
[Result "0-1"]
[Round "05"]
[TimeControl "180+2"]
[Date "2023.05.31"]
[WhiteClock "0:00:01"]
[BlackClock "0:01:23"]

1. e4 {[%clk 0:02:57]}  c5 {[%clk 0:03:00]} 2. Nf3 {[%clk 0:02:57]}  d6 {[%clk 0:03:00]} 3. Bb5+ {[%clk 0:02:56]}  Nd7 {[%clk 0:03:00]} 4. c3 {[%clk 0:02:56]}  Nf6 {[%clk 0:02:59]} 5. Bd3 {[%clk 0:02:48]}  g6 {[%clk 0:02:57]} 6. Bc2 {[%clk 0:02:43]}  Bg7 {[%clk 0:02:56]} 7. d4 {[%clk 0:02:43]}  O-O {[%clk 0:02:56]} 8. O-O {[%clk 0:02:33]}  Qc7 {[%clk 0:02:57]} 9. Re1 {[%clk 0:02:15]}  e5 {[%clk 0:02:56]} 10. dxe5 {[%clk 0:02:12]}  dxe5 {[%clk 0:02:56]} 11. c4 {[%clk 0:02:12]}  Nb8 {[%clk 0:02:50]} 12. Nc3 {[%clk 0:02:05]}  Nc6 {[%clk 0:02:50]} 13. Bg5 {[%clk 0:02:04]}  Bg4 {[%clk 0:02:41]} 14. Bxf6 {[%clk 0:02:03]}  Bxf6 {[%clk 0:02:40]} 15. Nd5 {[%clk 0:02:03]}  Qd8 {[%clk 0:02:40]} 16. h3 {[%clk 0:01:53]}  Bxf3 {[%clk 0:02:38]} 17. Qxf3 {[%clk 0:01:51]}  Bg7 {[%clk 0:02:39]} 18. Qg3 {[%clk 0:01:15]}  Nd4 {[%clk 0:02:38]} 19. Bd3 {[%clk 0:01:09]}  Kh8 {[%clk 0:02:38]} 20. Rad1 {[%clk 0:00:35]}  Qd6 {[%clk 0:02:37]} 21. a3 {[%clk 0:00:34]}  f5 {[%clk 0:02:34]} 22. exf5 {[%clk 0:00:33]}  gxf5 {[%clk 0:02:34]} 23. Bb1 {[%clk 0:00:32]}  Rad8 {[%clk 0:02:32]} 24. b4 {[%clk 0:00:30]}  b6 {[%clk 0:02:31]} 25. bxc5 {[%clk 0:00:27]}  bxc5 {[%clk 0:02:31]} 26. Qh4 {[%clk 0:00:21]}  e4 {[%clk 0:02:28]} 27. Qh5 {[%clk 0:00:11]}  Be5 {[%clk 0:02:24]} 28. Kf1 {[%clk 0:00:05]}  Bg7 {[%clk 0:02:08]} 29. Kg1 {[%clk 0:00:04]}  Qa6 {[%clk 0:02:04]} 30. Re3 {[%clk 0:00:02]}  Qxc4 {[%clk 0:02:01]} 31. Nf4 {[%clk 0:00:02]}  Rd6 {[%clk 0:01:49]} 32. Kh2 {[%clk 0:00:02]}  Be5 {[%clk 0:01:45]} 33. g3 {[%clk 0:00:01]}  Bxf4 {[%clk 0:01:44]} 34. gxf4 {[%clk 0:00:02]}  Rg6 {[%clk 0:01:32]} 35. Rg3 {[%clk 0:00:02]}  Rfg8 {[%clk 0:01:26]} 36. Rxg6 {[%clk 0:00:01]}  Rxg6 {[%clk 0:01:27]} 37. Qh4 {[%clk 0:00:01]}  Nf3+ {[%clk 0:01:24]} 38. Kh1 {[%clk 0:00:01]}  Nxh4 {[%clk 0:01:23]} 0-1


[Site "https://www.chess.com"]

[Event "Titled Tuesday Blitz May 30 Late 2023"]
[White "Talbi, Chafik"]
[Black "Fiorito, Francisco"]
[WhiteFideId "7903715"]
[BlackFideId "180165"]
[WhiteElo "2186"]
[BlackElo "2341"]
[Result "0-1"]
[Round "05"]
[TimeControl "180+2"]
[Date "2023.05.31"]
[WhiteClock "0:00:08"]
[BlackClock "0:00:10"]

1. e4 {[%clk 0:02:59]}  c5 {[%clk 0:02:57]} 2. c3 {[%clk 0:02:58]}  Nf6 {[%clk 0:02:57]} 3. e5 {[%clk 0:02:58]}  Nd5 {[%clk 0:02:57]} 4. d4 {[%clk 0:02:58]}  cxd4 {[%clk 0:02:57]} 5. cxd4 {[%clk 0:02:58]}  d6 {[%clk 0:02:52]} 6. Nf3 {[%clk 0:02:56]}  Nc6 {[%clk 0:02:52]} 7. Bc4 {[%clk 0:02:47]}  Nb6 {[%clk 0:02:51]} 8. Bb3 {[%clk 0:02:45]}  dxe5 {[%clk 0:02:50]} 9. dxe5 {[%clk 0:02:44]}  Qxd1+ {[%clk 0:02:48]} 10. Bxd1 {[%clk 0:02:44]}  Bg4 {[%clk 0:02:45]} 11. h3 {[%clk 0:02:43]}  Bxf3 {[%clk 0:02:45]} 12. Bxf3 {[%clk 0:02:43]}  O-O-O {[%clk 0:02:41]} 13. Bxc6 {[%clk 0:02:42]}  bxc6 {[%clk 0:02:40]} 14. Be3 {[%clk 0:02:41]}  e6 {[%clk 0:02:37]} 15. O-O {[%clk 0:02:39]}  Kb7 {[%clk 0:02:36]} 16. Nd2 {[%clk 0:02:23]}  Nd5 {[%clk 0:02:31]} 17. Nc4 {[%clk 0:02:22]}  Rc8 {[%clk 0:02:23]} 18. b3 {[%clk 0:02:19]}  Bb4 {[%clk 0:02:18]} 19. Rac1 {[%clk 0:02:18]}  Ka6 {[%clk 0:02:03]} 20. a3 {[%clk 0:02:17]}  Be7 {[%clk 0:02:02]} 21. Rc2 {[%clk 0:02:14]}  Rhd8 {[%clk 0:02:01]} 22. Rfc1 {[%clk 0:02:08]}  Nxe3 {[%clk 0:02:00]} 23. Nxe3 {[%clk 0:02:05]}  Kb7 {[%clk 0:01:58]} 24. Nc4 {[%clk 0:02:05]}  Rd5 {[%clk 0:01:58]} 25. b4 {[%clk 0:02:02]}  c5 {[%clk 0:01:55]} 26. Na5+ {[%clk 0:01:58]}  Kb6 {[%clk 0:01:52]} 27. Nb3 {[%clk 0:01:53]}  Rxe5 {[%clk 0:01:46]} 28. bxc5+ {[%clk 0:01:51]}  Bxc5 {[%clk 0:01:44]} 29. Rb1 {[%clk 0:01:51]}  Ka6 {[%clk 0:01:35]} 30. Rbc1 {[%clk 0:01:46]}  Kb5 {[%clk 0:01:34]} 31. a4+ {[%clk 0:01:38]}  Kb6 {[%clk 0:01:17]} 32. Rb1 {[%clk 0:01:34]}  Kc6 {[%clk 0:01:13]} 33. Nd4+ {[%clk 0:01:26]}  Kd7 {[%clk 0:01:09]} 34. Rb7+ {[%clk 0:01:25]}  Rc7 {[%clk 0:01:08]} 35. Rxc7+ {[%clk 0:01:21]}  Kxc7 {[%clk 0:01:09]} 36. Nb3 {[%clk 0:01:14]}  Kb6 {[%clk 0:01:06]} 37. Kf1 {[%clk 0:01:11]}  a5 {[%clk 0:01:05]} 38. g3 {[%clk 0:01:07]}  Bb4 {[%clk 0:01:04]} 39. Nd4 {[%clk 0:01:04]}  Rc5 {[%clk 0:01:04]} 40. Re2 {[%clk 0:00:57]}  Rc4 {[%clk 0:01:01]} 41. Nb5 {[%clk 0:00:56]}  Bc5 {[%clk 0:01:01]} 42. Rb2 {[%clk 0:00:54]}  Rb4 {[%clk 0:00:58]} 43. Ra2 {[%clk 0:00:51]}  e5 {[%clk 0:00:57]} 44. Ke2 {[%clk 0:00:50]}  f6 {[%clk 0:00:56]} 45. Nc3 {[%clk 0:00:50]}  Kc6 {[%clk 0:00:56]} 46. f3 {[%clk 0:00:48]}  h5 {[%clk 0:00:56]} 47. g4 {[%clk 0:00:48]}  hxg4 {[%clk 0:00:53]} 48. hxg4 {[%clk 0:00:48]}  Bd4 {[%clk 0:00:51]} 49. Ne4 {[%clk 0:00:47]}  Rb2+ {[%clk 0:00:51]} 50. Rxb2 {[%clk 0:00:47]}  Bxb2 {[%clk 0:00:51]} 51. Kd3 {[%clk 0:00:46]}  Bd4 {[%clk 0:00:51]} 52. Kc4 {[%clk 0:00:46]}  Be3 {[%clk 0:00:46]} 53. Ng3 {[%clk 0:00:44]}  g6 {[%clk 0:00:45]} 54. Ne4 {[%clk 0:00:44]}  f5 {[%clk 0:00:45]} 55. gxf5 {[%clk 0:00:41]}  gxf5 {[%clk 0:00:46]} 56. Nc3 {[%clk 0:00:40]}  Bd4 {[%clk 0:00:44]} 57. Nd5 {[%clk 0:00:38]}  Bc5 {[%clk 0:00:34]} 58. Nc3 {[%clk 0:00:32]}  Bb4 {[%clk 0:00:33]} 59. Nd5 {[%clk 0:00:31]}  Bf8 {[%clk 0:00:31]} 60. Nc3 {[%clk 0:00:30]}  Bd6 {[%clk 0:00:26]} 61. Nb5 {[%clk 0:00:25]}  Bb4 {[%clk 0:00:22]} 62. Na7+ {[%clk 0:00:24]}  Kd7 {[%clk 0:00:19]} 63. Kd5 {[%clk 0:00:23]}  e4 {[%clk 0:00:12]} 64. fxe4 {[%clk 0:00:23]}  f4 {[%clk 0:00:13]} 65. Nc6 {[%clk 0:00:19]}  Bc3 {[%clk 0:00:12]} 66. e5 {[%clk 0:00:11]}  f3 {[%clk 0:00:10]} 67. e6+ {[%clk 0:00:11]}  Ke8 {[%clk 0:00:10]} 68. e7 {[%clk 0:00:10]}  f2 {[%clk 0:00:09]} 69. Ke6 {[%clk 0:00:10]}  f1=Q {[%clk 0:00:09]} 70. Ne5 {[%clk 0:00:09]}  Bxe5 {[%clk 0:00:08]} 71. Kxe5 {[%clk 0:00:09]}  Kxe7 {[%clk 0:00:08]} 72. Kd5 {[%clk 0:00:10]}  Qc1 {[%clk 0:00:08]} 73. Ke4 {[%clk 0:00:10]}  Qc2+ {[%clk 0:00:09]} 74. Kd5 {[%clk 0:00:10]}  Qxa4 {[%clk 0:00:10]} 75. Kc5 {[%clk 0:00:10]}  Qb4+ {[%clk 0:00:10]} 76. Kd5 {[%clk 0:00:10]}  a4 {[%clk 0:00:10]} 77. Ke5 {[%clk 0:00:10]}  Qc4 {[%clk 0:00:10]} 78. Kf5 {[%clk 0:00:10]}  Qd4 {[%clk 0:00:11]} 79. Kg5 {[%clk 0:00:10]}  Qe4 {[%clk 0:00:11]} 80. Kh5 {[%clk 0:00:08]}  Kf6 {[%clk 0:00:10]} 81. Kh6 {[%clk 0:00:08]}  Qh4# {[%clk 0:00:10]} 0-1


[Site "https://www.chess.com"]

[Event "Titled Tuesday Blitz May 30 Late 2023"]
[White "Lalanne, Pablo"]
[Black "Marra, Eduardo da Costa"]
[WhiteFideId "112151"]
[BlackFideId "2106990"]
[WhiteElo "2120"]
[BlackElo "2252"]
[Result "1-0"]
[Round "05"]
[TimeControl "180+2"]
[Date "2023.05.31"]
[WhiteClock "0:00:06"]
[BlackClock "0:00:13"]

1. e4 {[%clk 0:03:00]}  c5 {[%clk 0:02:59]} 2. Nf3 {[%clk 0:03:00]}  e6 {[%clk 0:03:00]} 3. d4 {[%clk 0:03:00]}  cxd4 {[%clk 0:03:00]} 4. Nxd4 {[%clk 0:03:01]}  Nf6 {[%clk 0:03:00]} 5. Nc3 {[%clk 0:03:01]}  Nc6 {[%clk 0:03:01]} 6. Ndb5 {[%clk 0:03:01]}  Bc5 {[%clk 0:03:01]} 7. Bf4 {[%clk 0:02:56]}  O-O {[%clk 0:03:01]} 8. Bc7 {[%clk 0:02:54]}  Qe7 {[%clk 0:03:01]} 9. Bd6 {[%clk 0:02:54]}  Bxd6 {[%clk 0:03:02]} 10. Qxd6 {[%clk 0:02:54]}  Qd8 {[%clk 0:03:03]} 11. Be2 {[%clk 0:02:41]}  Qb6 {[%clk 0:02:58]} 12. a4 {[%clk 0:02:03]}  a6 {[%clk 0:02:54]} 13. a5 {[%clk 0:02:03]}  Qd8 {[%clk 0:02:50]} 14. Nc7 {[%clk 0:01:47]}  Ne8 {[%clk 0:02:43]} 15. Nxe8 {[%clk 0:01:46]}  Rxe8 {[%clk 0:02:44]} 16. b4 {[%clk 0:01:41]}  Qf6 {[%clk 0:02:37]} 17. Qc5 {[%clk 0:01:29]}  d5 {[%clk 0:02:26]} 18. O-O {[%clk 0:01:19]}  d4 {[%clk 0:02:22]} 19. Na4 {[%clk 0:01:14]}  e5 {[%clk 0:02:22]} 20. Nb6 {[%clk 0:01:11]}  Rb8 {[%clk 0:02:21]} 21. Nd5 {[%clk 0:01:09]}  Qd8 {[%clk 0:02:00]} 22. Rad1 {[%clk 0:01:01]}  Be6 {[%clk 0:01:57]} 23. Bc4 {[%clk 0:00:59]}  Rc8 {[%clk 0:01:57]} 24. Nb6 {[%clk 0:00:57]}  Rc7 {[%clk 0:01:56]} 25. Bxe6 {[%clk 0:00:54]}  Rxe6 {[%clk 0:01:33]} 26. Qd5 {[%clk 0:00:25]}  Rd6 {[%clk 0:01:33]} 27. Qb3 {[%clk 0:00:25]}  Qg5 {[%clk 0:01:33]} 28. Rd3 {[%clk 0:00:20]}  Qg6 {[%clk 0:01:18]} 29. Re1 {[%clk 0:00:19]}  h6 {[%clk 0:01:15]} 30. Rg3 {[%clk 0:00:19]}  Qe6 {[%clk 0:01:12]} 31. Nd5 {[%clk 0:00:19]}  Rc8 {[%clk 0:01:10]} 32. Qf3 {[%clk 0:00:19]}  Ne7 {[%clk 0:01:06]} 33. Nb6 {[%clk 0:00:17]}  Rxc2 {[%clk 0:01:02]} 34. Qd3 {[%clk 0:00:17]}  Rc3 {[%clk 0:01:01]} 35. Qd2 {[%clk 0:00:17]}  Rxg3 {[%clk 0:00:57]} 36. hxg3 {[%clk 0:00:17]}  Rc6 {[%clk 0:00:56]} 37. Rc1 {[%clk 0:00:17]}  Qb3 {[%clk 0:00:45]} 38. Rxc6 {[%clk 0:00:11]}  Nxc6 {[%clk 0:00:45]} 39. Nd5 {[%clk 0:00:11]}  Qb1+ {[%clk 0:00:45]} 40. Kh2 {[%clk 0:00:11]}  Qxe4 {[%clk 0:00:46]} 41. Qa2 {[%clk 0:00:07]}  d3 {[%clk 0:00:38]} 42. Ne3 {[%clk 0:00:07]}  Qd4 {[%clk 0:00:34]} 43. Qb3 {[%clk 0:00:06]}  d2 {[%clk 0:00:31]} 44. b5 {[%clk 0:00:06]}  axb5 {[%clk 0:00:30]} 45. Qxb5 {[%clk 0:00:06]}  d1=Q {[%clk 0:00:27]} 46. Nxd1 {[%clk 0:00:06]}  Qxd1 {[%clk 0:00:26]} 47. a6 {[%clk 0:00:07]}  Qh5+ {[%clk 0:00:15]} 48. Kg1 {[%clk 0:00:07]}  Qd1+ {[%clk 0:00:15]} 49. Kh2 {[%clk 0:00:07]}  Qd6 {[%clk 0:00:15]} 50. axb7 {[%clk 0:00:07]}  Nb8 {[%clk 0:00:15]} 51. Qa5 {[%clk 0:00:06]}  Qd8 {[%clk 0:00:13]} 52. Qxd8+ {[%clk 0:00:06]} 1-0


[Site "https://www.chess.com"]

[Event "Titled Tuesday Blitz May 30 Late 2023"]
[White "Oglaza, Oskar"]
[Black "Mathieu, Phileas"]
[WhiteFideId "1194402"]
[BlackFideId "36048410"]
[WhiteElo "2204"]
[BlackElo "2241"]
[Result "1-0"]
[Round "05"]
[TimeControl "180+2"]
[Date "2023.05.31"]
[WhiteClock "0:00:11"]
[BlackClock "0:00:23"]

1. e4 {[%clk 0:02:58]}  c5 {[%clk 0:02:43]} 2. Nf3 {[%clk 0:02:56]}  Nc6 {[%clk 0:02:38]} 3. d4 {[%clk 0:02:55]}  cxd4 {[%clk 0:02:39]} 4. Nxd4 {[%clk 0:02:56]}  Nf6 {[%clk 0:02:40]} 5. Nc3 {[%clk 0:02:51]}  h5 {[%clk 0:02:40]} 6. Bc4 {[%clk 0:02:30]}  e6 {[%clk 0:02:39]} 7. Be3 {[%clk 0:02:28]}  Ng4 {[%clk 0:02:32]} 8. O-O {[%clk 0:01:49]}  Qc7 {[%clk 0:02:26]} 9. g3 {[%clk 0:01:44]}  a6 {[%clk 0:02:22]} 10. Bf4 {[%clk 0:01:38]}  Qb6 {[%clk 0:02:15]} 11. Nf5 {[%clk 0:01:22]}  exf5 {[%clk 0:02:09]} 12. Nd5 {[%clk 0:01:21]}  Qc5 {[%clk 0:02:04]} 13. exf5 {[%clk 0:01:04]}  Qxc4 {[%clk 0:01:48]} 14. Re1+ {[%clk 0:01:03]}  Be7 {[%clk 0:01:48]} 15. Nc7+ {[%clk 0:00:41]}  Kf8 {[%clk 0:01:44]} 16. Nxa8 {[%clk 0:00:37]}  Qc5 {[%clk 0:01:40]} 17. Qe2 {[%clk 0:00:29]}  Kg8 {[%clk 0:01:25]} 18. c3 {[%clk 0:00:26]}  d5 {[%clk 0:01:20]} 19. b4 {[%clk 0:00:25]}  Qc4 {[%clk 0:01:09]} 20. Qd2 {[%clk 0:00:15]}  Bxf5 {[%clk 0:01:07]} 21. Nb6 {[%clk 0:00:15]}  Qd3 {[%clk 0:01:00]} 22. Qxd3 {[%clk 0:00:15]}  Bxd3 {[%clk 0:01:01]} 23. Nxd5 {[%clk 0:00:15]}  Bd8 {[%clk 0:00:56]} 24. Rad1 {[%clk 0:00:16]}  Bc4 {[%clk 0:00:54]} 25. Re4 {[%clk 0:00:14]}  Bxa2 {[%clk 0:00:53]} 26. c4 {[%clk 0:00:12]}  Kh7 {[%clk 0:00:37]} 27. Rd2 {[%clk 0:00:06]}  Bb3 {[%clk 0:00:37]} 28. h3 {[%clk 0:00:07]}  Nf6 {[%clk 0:00:37]} 29. Nxf6+ {[%clk 0:00:07]}  Bxf6 {[%clk 0:00:38]} 30. b5 {[%clk 0:00:08]}  axb5 {[%clk 0:00:37]} 31. cxb5 {[%clk 0:00:09]}  Nd8 {[%clk 0:00:36]} 32. Rd7 {[%clk 0:00:09]}  Be6 {[%clk 0:00:35]} 33. Rc7 {[%clk 0:00:09]}  Re8 {[%clk 0:00:34]} 34. b6 {[%clk 0:00:10]}  Re7 {[%clk 0:00:32]} 35. g4 {[%clk 0:00:09]}  hxg4 {[%clk 0:00:31]} 36. hxg4 {[%clk 0:00:10]}  g5 {[%clk 0:00:30]} 37. Be5 {[%clk 0:00:09]}  Kg7 {[%clk 0:00:26]} 38. Rxe7 {[%clk 0:00:09]}  Bxe5 {[%clk 0:00:26]} 39. Rxe5 {[%clk 0:00:10]}  Kf6 {[%clk 0:00:27]} 40. R5xe6+ {[%clk 0:00:10]}  fxe6 {[%clk 0:00:24]} 41. Rd7 {[%clk 0:00:11]}  Ke5 {[%clk 0:00:23]} 42. Rxd8 {[%clk 0:00:11]} 1-0


[Site "https://www.chess.com"]

[Event "Titled Tuesday Blitz May 30 Late 2023"]
[White "Thorfinnsson, Bragi"]
[Black "Qiao, Cindy"]
[WhiteFideId "2300958"]
[BlackFideId "2620243"]
[WhiteElo "2322"]
[BlackElo "1777"]
[Result "1-0"]
[Round "05"]
[TimeControl "180+2"]
[Date "2023.05.31"]
[WhiteClock "0:01:58"]
[BlackClock "0:01:25"]

1. Nc3 {[%clk 0:02:59]}  Nf6 {[%clk 0:02:57]} 2. e4 {[%clk 0:02:57]}  e5 {[%clk 0:02:54]} 3. Nf3 {[%clk 0:02:56]}  Nc6 {[%clk 0:02:52]} 4. d4 {[%clk 0:02:56]}  exd4 {[%clk 0:02:51]} 5. Nd5 {[%clk 0:02:57]}  d6 {[%clk 0:02:33]} 6. Nxd4 {[%clk 0:02:51]}  Nxd5 {[%clk 0:02:26]} 7. exd5 {[%clk 0:02:50]}  Ne5 {[%clk 0:02:17]} 8. Bb5+ {[%clk 0:02:37]}  Bd7 {[%clk 0:02:14]} 9. Qe2 {[%clk 0:02:38]}  Be7 {[%clk 0:02:09]} 10. f4 {[%clk 0:02:36]}  Ng6 {[%clk 0:02:09]} 11. f5 {[%clk 0:02:11]}  Ne5 {[%clk 0:02:09]} 12. Ne6 {[%clk 0:02:10]}  fxe6 {[%clk 0:01:58]} 13. fxe6 {[%clk 0:02:11]}  Bxb5 {[%clk 0:01:56]} 14. Qxb5+ {[%clk 0:02:12]}  c6 {[%clk 0:01:52]} 15. Qxb7 {[%clk 0:02:09]}  cxd5 {[%clk 0:01:40]} 16. Qb5+ {[%clk 0:02:06]}  Kf8 {[%clk 0:01:36]} 17. O-O+ {[%clk 0:02:06]}  Kg8 {[%clk 0:01:34]} 18. Qxd5 {[%clk 0:02:01]}  Qc7 {[%clk 0:01:25]} 19. Qxa8+ {[%clk 0:01:58]} 1-0


[Site "https://www.chess.com"]

[Event "Titled Tuesday Blitz May 30 Late 2023"]
[White "Dragomirescu, Calin"]
[Black "Golubev, Mikhail"]
[WhiteFideId "1200895"]
[BlackFideId "14100983"]
[WhiteElo "2010"]
[BlackElo "2374"]
[Result "0-1"]
[Round "05"]
[TimeControl "180+2"]
[Date "2023.05.31"]
[WhiteClock "0:01:00"]
[BlackClock "0:00:21"]

1. d4 {[%clk 0:03:00]}  Nf6 {[%clk 0:02:59]} 2. Nf3 {[%clk 0:03:01]}  d6 {[%clk 0:02:58]} 3. c4 {[%clk 0:03:01]}  g6 {[%clk 0:02:59]} 4. Nc3 {[%clk 0:03:02]}  Bg7 {[%clk 0:02:59]} 5. e4 {[%clk 0:03:02]}  O-O {[%clk 0:02:59]} 6. Be2 {[%clk 0:03:03]}  e5 {[%clk 0:02:59]} 7. O-O {[%clk 0:03:03]}  Nc6 {[%clk 0:02:58]} 8. d5 {[%clk 0:03:03]}  Ne7 {[%clk 0:02:59]} 9. Be3 {[%clk 0:02:59]}  Ng4 {[%clk 0:02:57]} 10. Bg5 {[%clk 0:02:59]}  f6 {[%clk 0:02:56]} 11. Bd2 {[%clk 0:02:58]}  Nh6 {[%clk 0:02:47]} 12. b4 {[%clk 0:02:58]}  f5 {[%clk 0:02:40]} 13. Ng5 {[%clk 0:02:55]}  f4 {[%clk 0:02:31]} 14. c5 {[%clk 0:02:49]}  a5 {[%clk 0:02:18]} 15. bxa5 {[%clk 0:02:39]}  dxc5 {[%clk 0:02:07]} 16. Ne6 {[%clk 0:02:35]}  Bxe6 {[%clk 0:02:06]} 17. dxe6 {[%clk 0:02:36]}  c6 {[%clk 0:01:49]} 18. Na4 {[%clk 0:02:23]}  Qd4 {[%clk 0:01:30]} 19. Bc3 {[%clk 0:02:16]}  Qxe4 {[%clk 0:01:27]} 20. Nxc5 {[%clk 0:02:11]}  Qf5 {[%clk 0:01:27]} 21. Nxb7 {[%clk 0:02:01]}  Nd5 {[%clk 0:01:21]} 22. Qb3 {[%clk 0:01:54]}  Qxe6 {[%clk 0:01:07]} 23. Bc4 {[%clk 0:01:50]}  f3 {[%clk 0:00:59]} 24. Rfd1 {[%clk 0:01:46]}  Kh8 {[%clk 0:00:38]} 25. Bxd5 {[%clk 0:01:40]}  cxd5 {[%clk 0:00:38]} 26. Qxd5 {[%clk 0:01:41]}  Qg4 {[%clk 0:00:35]} 27. Kf1 {[%clk 0:01:16]}  Qxg2+ {[%clk 0:00:33]} 28. Ke1 {[%clk 0:01:16]}  Qg1+ {[%clk 0:00:32]} 29. Kd2 {[%clk 0:01:16]}  Qxf2+ {[%clk 0:00:32]} 30. Kc1 {[%clk 0:01:16]}  Rac8 {[%clk 0:00:31]} 31. Rd3 {[%clk 0:01:11]}  e4 {[%clk 0:00:27]} 32. Rd2 {[%clk 0:01:03]}  Rxc3+ {[%clk 0:00:24]} 33. Kb2 {[%clk 0:01:03]}  Rd3+ {[%clk 0:00:21]} 34. Kc2 {[%clk 0:01:00]}  Qxd2+ {[%clk 0:00:21]} 0-1


[Site "https://www.chess.com"]

[Event "Titled Tuesday Blitz May 30 Late 2023"]
[White "Bilan, Danila"]
[Black "drdaro"]
[WhiteFideId "24161918"]
[WhiteElo "2182"]
[BlackElo "2335"]
[Result "0-1"]
[Round "05"]
[TimeControl "180+2"]
[Date "2023.05.31"]
[WhiteClock "0:00:05"]
[BlackClock "0:00:49"]

1. d4 {[%clk 0:02:59]}  g6 {[%clk 0:03:00]} 2. Nf3 {[%clk 0:02:59]}  Bg7 {[%clk 0:03:00]} 3. Bg5 {[%clk 0:02:59]}  Nf6 {[%clk 0:03:00]} 4. c3 {[%clk 0:02:59]}  O-O {[%clk 0:03:01]} 5. Nbd2 {[%clk 0:02:59]}  d5 {[%clk 0:03:00]} 6. e3 {[%clk 0:02:59]}  c5 {[%clk 0:03:00]} 7. Bd3 {[%clk 0:02:56]}  b6 {[%clk 0:03:00]} 8. e4 {[%clk 0:02:50]}  dxe4 {[%clk 0:02:57]} 9. Nxe4 {[%clk 0:02:46]}  Bb7 {[%clk 0:02:57]} 10. Qe2 {[%clk 0:02:40]}  Nbd7 {[%clk 0:02:52]} 11. O-O {[%clk 0:02:33]}  Rc8 {[%clk 0:02:44]} 12. Rad1 {[%clk 0:02:26]}  cxd4 {[%clk 0:02:32]} 13. Nxd4 {[%clk 0:02:22]}  Qc7 {[%clk 0:02:17]} 14. Nb5 {[%clk 0:01:53]}  Qb8 {[%clk 0:02:16]} 15. Bh4 {[%clk 0:01:38]}  a6 {[%clk 0:02:15]} 16. Nd4 {[%clk 0:01:32]}  b5 {[%clk 0:02:15]} 17. Bg3 {[%clk 0:01:12]}  Qa7 {[%clk 0:02:13]} 18. Nxf6+ {[%clk 0:01:02]}  Bxf6 {[%clk 0:02:06]} 19. Be4 {[%clk 0:00:58]}  Rfe8 {[%clk 0:02:04]} 20. h4 {[%clk 0:00:53]}  Nc5 {[%clk 0:01:53]} 21. Bb1 {[%clk 0:00:40]}  e5 {[%clk 0:01:46]} 22. Nf3 {[%clk 0:00:33]}  Qa8 {[%clk 0:01:37]} 23. h5 {[%clk 0:00:29]}  Bd5 {[%clk 0:01:32]} 24. hxg6 {[%clk 0:00:17]}  hxg6 {[%clk 0:01:33]} 25. Ne1 {[%clk 0:00:15]}  Bc4 {[%clk 0:01:26]} 26. Nd3 {[%clk 0:00:08]}  e4 {[%clk 0:01:25]} 27. Qe3 {[%clk 0:00:04]}  Nxd3 {[%clk 0:01:22]} 28. b3 {[%clk 0:00:04]}  Bd5 {[%clk 0:01:22]} 29. Bc2 {[%clk 0:00:02]}  Rxc3 {[%clk 0:01:20]} 30. Bb1 {[%clk 0:00:03]}  Qc6 {[%clk 0:01:19]} 31. Qh6 {[%clk 0:00:02]}  Bg7 {[%clk 0:01:19]} 32. Qh3 {[%clk 0:00:02]}  Nf4 {[%clk 0:01:14]} 33. Qg4 {[%clk 0:00:02]}  Nd3 {[%clk 0:01:11]} 34. Rd2 {[%clk 0:00:02]}  Bh6 {[%clk 0:01:10]} 35. Re2 {[%clk 0:00:01]}  Nc1 {[%clk 0:01:07]} 36. Ree1 {[%clk 0:00:01]}  e3 {[%clk 0:00:58]} 37. fxe3 {[%clk 0:00:01]}  Bxg2 {[%clk 0:00:58]} 38. Rf2 {[%clk 0:00:01]}  Be4 {[%clk 0:00:53]} 39. Bf4 {[%clk 0:00:01]}  Bxf4 {[%clk 0:00:50]} 40. exf4 {[%clk 0:00:02]}  Bxb1 {[%clk 0:00:50]} 41. Rxe8+ {[%clk 0:00:02]}  Qxe8 {[%clk 0:00:51]} 42. f5 {[%clk 0:00:01]}  Bxf5 {[%clk 0:00:50]} 43. Rxf5 {[%clk 0:00:01]}  Qe1+ {[%clk 0:00:50]} 44. Rf1 {[%clk 0:00:02]}  Ne2+ {[%clk 0:00:50]} 45. Kh2 {[%clk 0:00:01]}  Qg3+ {[%clk 0:00:47]} 46. Qxg3 {[%clk 0:00:01]}  Nxg3 {[%clk 0:00:46]} 47. Rf2 {[%clk 0:00:02]}  Nf5 {[%clk 0:00:47]} 48. Rd2 {[%clk 0:00:02]}  Kg7 {[%clk 0:00:45]} 49. Kg2 {[%clk 0:00:03]}  Rc2 {[%clk 0:00:44]} 50. Rf2 {[%clk 0:00:02]}  Rxf2+ {[%clk 0:00:44]} 51. Kxf2 {[%clk 0:00:02]}  Kf6 {[%clk 0:00:45]} 52. a4 {[%clk 0:00:02]}  Ke5 {[%clk 0:00:45]} 53. a5 {[%clk 0:00:03]}  g5 {[%clk 0:00:45]} 54. Kf3 {[%clk 0:00:04]}  Nd4+ {[%clk 0:00:46]} 55. Kg4 {[%clk 0:00:05]}  f6 {[%clk 0:00:46]} 56. Kg3 {[%clk 0:00:04]}  Nxb3 {[%clk 0:00:46]} 57. Kg4 {[%clk 0:00:04]}  Nxa5 {[%clk 0:00:47]} 58. Kf3 {[%clk 0:00:05]}  b4 {[%clk 0:00:48]} 59. Kg4 {[%clk 0:00:05]}  b3 {[%clk 0:00:49]} 0-1


[Site "https://www.chess.com"]

[Event "Titled Tuesday Blitz May 30 Late 2023"]
[White "Skuhala, Barbara"]
[Black "Gheorghiu, Calin"]
[WhiteFideId "14605465"]
[BlackFideId "1200305"]
[WhiteElo "2072"]
[BlackElo "2223"]
[Result "0-1"]
[Round "05"]
[TimeControl "180+2"]
[Date "2023.05.31"]
[WhiteClock "0:01:42"]
[BlackClock "0:00:32"]

1. e4 {[%clk 0:03:00]}  e6 {[%clk 0:02:57]} 2. d4 {[%clk 0:02:58]}  d5 {[%clk 0:02:57]} 3. Nc3 {[%clk 0:02:57]}  Bb4 {[%clk 0:02:56]} 4. e5 {[%clk 0:02:55]}  c5 {[%clk 0:02:55]} 5. a3 {[%clk 0:02:55]}  Bxc3+ {[%clk 0:02:54]} 6. bxc3 {[%clk 0:02:55]}  Ne7 {[%clk 0:02:52]} 7. Qg4 {[%clk 0:02:53]}  Qc7 {[%clk 0:02:52]} 8. Qxg7 {[%clk 0:02:52]}  Rg8 {[%clk 0:02:52]} 9. Qxh7 {[%clk 0:02:53]}  cxd4 {[%clk 0:02:53]} 10. Ne2 {[%clk 0:02:52]}  dxc3 {[%clk 0:02:54]} 11. f4 {[%clk 0:02:52]}  Na6 {[%clk 0:02:48]} 12. Qd3 {[%clk 0:02:49]}  Nc5 {[%clk 0:02:39]} 13. Qxc3 {[%clk 0:02:47]}  Bd7 {[%clk 0:02:39]} 14. Nd4 {[%clk 0:02:42]}  a6 {[%clk 0:02:34]} 15. Bd2 {[%clk 0:02:41]}  Rc8 {[%clk 0:02:29]} 16. Nb3 {[%clk 0:02:38]}  Qb6 {[%clk 0:01:59]} 17. Be3 {[%clk 0:02:34]}  Nxb3 {[%clk 0:01:43]} 18. Qxb3 {[%clk 0:02:21]}  Qxb3 {[%clk 0:01:25]} 19. cxb3 {[%clk 0:02:20]}  Rc3 {[%clk 0:01:26]} 20. Kf2 {[%clk 0:02:17]}  Rxb3 {[%clk 0:01:24]} 21. Be2 {[%clk 0:02:13]}  Nf5 {[%clk 0:01:24]} 22. Bc5 {[%clk 0:02:09]}  Bb5 {[%clk 0:00:58]} 23. Bxb5+ {[%clk 0:01:58]}  Rxb5 {[%clk 0:00:58]} 24. Rhc1 {[%clk 0:01:50]}  Rb2+ {[%clk 0:00:57]} 25. Kf3 {[%clk 0:01:49]}  Rgxg2 {[%clk 0:00:57]} 26. Rab1 {[%clk 0:01:42]}  Rbe2 {[%clk 0:00:32]} 0-1


[Site "https://www.chess.com"]